[Event "Titled Tuesday Blitz November 08 Late 2022"]
[White "Fernandez De La Vara, Arnaldo"]
[Black "Wartiovaara, Oliver"]
[WhiteFideId "3518388"]
[BlackFideId "513024"]
[WhiteElo "2387"]
[BlackElo "2213"]
[Result "1-0"]
[Round "02"]
[TimeControl "180+1"]
[Date "2022.11.09"]
[WhiteClock "0:00:03"]
[BlackClock "0:00:01"]

1. Nf3 {[%clk 0:03:00]}  Nf6 {[%clk 0:02:58]} 2. b3 {[%clk 0:03:00]}  g6 {[%clk 0:02:58]} 3. Bb2 {[%clk 0:03:01]}  Bg7 {[%clk 0:02:59]} 4. g3 {[%clk 0:03:02]}  O-O {[%clk 0:02:59]} 5. Bg2 {[%clk 0:03:02]}  d5 {[%clk 0:02:57]} 6. c4 {[%clk 0:03:02]}  c6 {[%clk 0:02:56]} 7. O-O {[%clk 0:03:02]}  a5 {[%clk 0:02:53]} 8. Nc3 {[%clk 0:03:02]}  Na6 {[%clk 0:02:52]} 9. d4 {[%clk 0:02:59]}  Bf5 {[%clk 0:02:48]} 10. Nh4 {[%clk 0:02:54]}  Be6 {[%clk 0:02:44]} 11. cxd5 {[%clk 0:02:54]}  Nxd5 {[%clk 0:02:42]} 12. e4 {[%clk 0:02:51]}  Nxc3 {[%clk 0:02:41]} 13. Bxc3 {[%clk 0:02:52]}  c5 {[%clk 0:02:36]} 14. Nf3 {[%clk 0:02:31]}  Bg4 {[%clk 0:02:35]} 15. e5 {[%clk 0:02:31]}  Rc8 {[%clk 0:02:19]} 16. h3 {[%clk 0:02:27]}  Be6 {[%clk 0:02:02]} 17. Ng5 {[%clk 0:01:45]}  Bd5 {[%clk 0:02:00]} 18. dxc5 {[%clk 0:01:43]}  Rxc5 {[%clk 0:01:56]} 19. Bd4 {[%clk 0:01:33]}  Bxg2 {[%clk 0:01:55]} 20. Kxg2 {[%clk 0:01:19]}  Rd5 {[%clk 0:01:44]} 21. Nf3 {[%clk 0:01:20]}  f6 {[%clk 0:01:29]} 22. e6 {[%clk 0:00:51]}  Qd6 {[%clk 0:01:04]} 23. Qe2 {[%clk 0:00:44]}  Rxd4 {[%clk 0:01:04]} 24. Nxd4 {[%clk 0:00:45]}  Qxd4 {[%clk 0:01:04]} 25. Rad1 {[%clk 0:00:44]}  Qc5 {[%clk 0:00:54]} 26. Rd7 {[%clk 0:00:44]}  Nb4 {[%clk 0:00:49]} 27. Rfd1 {[%clk 0:00:41]}  b5 {[%clk 0:00:32]} 28. a3 {[%clk 0:00:32]}  Nc6 {[%clk 0:00:31]} 29. R1d5 {[%clk 0:00:32]}  Qb6 {[%clk 0:00:30]} 30. Qxb5 {[%clk 0:00:30]}  Qxb5 {[%clk 0:00:24]} 31. Rxb5 {[%clk 0:00:31]}  f5 {[%clk 0:00:24]} 32. Rc5 {[%clk 0:00:23]}  Nd4 {[%clk 0:00:19]} 33. Rxe7 {[%clk 0:00:23]}  Bf6 {[%clk 0:00:17]} 34. Rd7 {[%clk 0:00:23]}  Nxb3 {[%clk 0:00:15]} 35. Rcc7 {[%clk 0:00:22]}  Re8 {[%clk 0:00:15]} 36. Rxh7 {[%clk 0:00:22]}  Rxe6 {[%clk 0:00:16]} 37. Rhd7 {[%clk 0:00:21]}  Re8 {[%clk 0:00:12]} 38. Ra7 {[%clk 0:00:21]}  Nc5 {[%clk 0:00:10]} 39. Rdc7 {[%clk 0:00:17]}  Ne6 {[%clk 0:00:09]} 40. Rc6 {[%clk 0:00:17]}  Bd4 {[%clk 0:00:06]} 41. Rxa5 {[%clk 0:00:17]}  Kf7 {[%clk 0:00:07]} 42. Raa6 {[%clk 0:00:16]}  Ng5 {[%clk 0:00:06]} 43. Rxg6 {[%clk 0:00:15]}  Ne4 {[%clk 0:00:06]} 44. Rgc6 {[%clk 0:00:04]}  Bxf2 {[%clk 0:00:05]} 45. Rc7+ {[%clk 0:00:04]}  Kf8 {[%clk 0:00:03]} 46. Rh6 {[%clk 0:00:04]}  Bd4 {[%clk 0:00:03]} 47. Rhh7 {[%clk 0:00:04]}  Nd6 {[%clk 0:00:02]} 48. Rcd7 {[%clk 0:00:03]}  Re2+ {[%clk 0:00:02]} 49. Kf1 {[%clk 0:00:03]}  Re6 {[%clk 0:00:01]} 50. Rd8+ {[%clk 0:00:02]}  Ne8 {[%clk 0:00:01]} 51. Rxd4 {[%clk 0:00:03]} 1-0


[Site "https://www.chess.com"]

[Event "Titled Tuesday Blitz November 08 Late 2022"]
[White "Fernandez Hernandez, Gerardo"]
[Black "Jean Louis, Marckens"]
[WhiteFideId "2207400"]
[BlackFideId "11900270"]
[WhiteElo "2234"]
[BlackElo "2030"]
[Result "0-1"]
[Round "02"]
[TimeControl "180+1"]
[Date "2022.11.09"]
[WhiteClock "0:01:10"]
[BlackClock "0:01:59"]

1. e4 {[%clk 0:03:00]}  c6 {[%clk 0:02:59]} 2. d4 {[%clk 0:03:00]}  d5 {[%clk 0:02:59]} 3. exd5 {[%clk 0:03:01]}  cxd5 {[%clk 0:02:59]} 4. c4 {[%clk 0:03:01]}  e6 {[%clk 0:02:59]} 5. Nc3 {[%clk 0:03:01]}  Nf6 {[%clk 0:02:59]} 6. c5 {[%clk 0:03:01]}  Be7 {[%clk 0:02:58]} 7. Nf3 {[%clk 0:03:01]}  O-O {[%clk 0:02:58]} 8. Bf4 {[%clk 0:02:59]}  Nc6 {[%clk 0:02:54]} 9. Bb5 {[%clk 0:02:59]}  Bd7 {[%clk 0:02:52]} 10. O-O {[%clk 0:02:59]}  a6 {[%clk 0:02:52]} 11. Bxc6 {[%clk 0:02:59]}  Bxc6 {[%clk 0:02:52]} 12. b4 {[%clk 0:02:56]}  Be8 {[%clk 0:02:48]} 13. a4 {[%clk 0:02:47]}  Ne4 {[%clk 0:02:44]} 14. Qc2 {[%clk 0:02:45]}  f5 {[%clk 0:02:41]} 15. Ne5 {[%clk 0:02:33]}  Rc8 {[%clk 0:02:35]} 16. Rfb1 {[%clk 0:02:26]}  Bf6 {[%clk 0:02:34]} 17. b5 {[%clk 0:02:22]}  axb5 {[%clk 0:02:34]} 18. axb5 {[%clk 0:02:22]}  g5 {[%clk 0:02:34]} 19. Bd2 {[%clk 0:02:15]}  Nxc5 {[%clk 0:02:10]} 20. dxc5 {[%clk 0:02:14]}  Bxe5 {[%clk 0:02:09]} 21. Ra7 {[%clk 0:02:07]}  Rxc5 {[%clk 0:02:08]} 22. Rxb7 {[%clk 0:02:01]}  d4 {[%clk 0:02:01]} 23. Qb3 {[%clk 0:01:48]}  dxc3 {[%clk 0:02:00]} 24. Qxe6+ {[%clk 0:01:48]}  Bf7 {[%clk 0:02:01]} 25. Rxf7 {[%clk 0:01:38]}  Rxf7 {[%clk 0:02:00]} 26. Be3 {[%clk 0:01:11]}  c2 {[%clk 0:01:59]} 27. Rc1 {[%clk 0:01:10]}  Qd1+ {[%clk 0:01:59]} 0-1


[Site "https://www.chess.com"]

[Event "Titled Tuesday Blitz November 08 Late 2022"]
[White "Fernandez Siles, Luis"]
[Black "Melikyan, Gnel"]
[WhiteFideId "2209420"]
[BlackFideId "54109990"]
[WhiteElo "2186"]
[BlackElo "2138"]
[Result "1-0"]
[Round "02"]
[TimeControl "180+1"]
[Date "2022.11.09"]
[WhiteClock "0:01:44"]
[BlackClock "0:00:49"]

1. e4 {[%clk 0:03:00]}  g6 {[%clk 0:02:58]} 2. Nc3 {[%clk 0:03:00]}  Bg7 {[%clk 0:02:58]} 3. f4 {[%clk 0:03:01]}  c5 {[%clk 0:02:57]} 4. Nf3 {[%clk 0:03:01]}  Nc6 {[%clk 0:02:57]} 5. Bb5 {[%clk 0:02:58]}  a6 {[%clk 0:02:55]} 6. Bxc6 {[%clk 0:02:58]}  dxc6 {[%clk 0:02:54]} 7. d3 {[%clk 0:02:56]}  Nf6 {[%clk 0:02:54]} 8. O-O {[%clk 0:02:55]}  O-O {[%clk 0:02:54]} 9. Qe1 {[%clk 0:02:55]}  Re8 {[%clk 0:02:49]} 10. Qh4 {[%clk 0:02:54]}  b6 {[%clk 0:02:48]} 11. f5 {[%clk 0:02:53]}  gxf5 {[%clk 0:02:42]} 12. Bh6 {[%clk 0:02:51]}  Bxh6 {[%clk 0:02:27]} 13. Qxh6 {[%clk 0:02:50]}  e6 {[%clk 0:02:27]} 14. Ng5 {[%clk 0:02:47]}  Rf8 {[%clk 0:01:42]} 15. Rf3 {[%clk 0:02:28]}  e5 {[%clk 0:01:24]} 16. Nxh7 {[%clk 0:02:14]}  Ng4 {[%clk 0:01:08]} 17. Rg3 {[%clk 0:02:06]}  f4 {[%clk 0:00:48]} 18. Rxg4+ {[%clk 0:01:47]}  Bxg4 {[%clk 0:00:49]} 19. Nf6+ {[%clk 0:01:44]} 1-0


[Site "https://www.chess.com"]

[Event "Titled Tuesday Blitz November 08 Late 2022"]
[White "Floresvillar Gonzalez, Luis Migu"]
[Black "Barria Santos, Jose Guilherme"]
[WhiteFideId "5100542"]
[BlackFideId "1939300"]
[WhiteElo "2040"]
[BlackElo "2273"]
[Result "1-0"]
[Round "02"]
[TimeControl "180+1"]
[Date "2022.11.09"]
[WhiteClock "0:01:19"]
[BlackClock "0:00:51"]

1. d4 {[%clk 0:03:00]}  Nf6 {[%clk 0:02:49]} 2. c3 {[%clk 0:02:58]}  d5 {[%clk 0:02:42]} 3. Bg5 {[%clk 0:02:58]}  c5 {[%clk 0:02:41]} 4. e3 {[%clk 0:02:57]}  e6 {[%clk 0:02:39]} 5. Nd2 {[%clk 0:02:56]}  Nc6 {[%clk 0:02:39]} 6. Bd3 {[%clk 0:02:55]}  h6 {[%clk 0:02:40]} 7. Bxf6 {[%clk 0:02:54]}  Qxf6 {[%clk 0:02:40]} 8. f4 {[%clk 0:02:53]}  Bd6 {[%clk 0:02:33]} 9. Ngf3 {[%clk 0:02:51]}  Bd7 {[%clk 0:02:32]} 10. O-O {[%clk 0:02:49]}  Ne7 {[%clk 0:02:27]} 11. Ne5 {[%clk 0:02:47]}  Rd8 {[%clk 0:02:04]} 12. Ndf3 {[%clk 0:02:35]}  Nf5 {[%clk 0:01:57]} 13. Qe2 {[%clk 0:02:19]}  Bxe5 {[%clk 0:01:44]} 14. fxe5 {[%clk 0:02:17]}  Qe7 {[%clk 0:01:43]} 15. Rae1 {[%clk 0:02:00]}  Nh4 {[%clk 0:01:36]} 16. Nxh4 {[%clk 0:01:56]}  Qxh4 {[%clk 0:01:37]} 17. Rf4 {[%clk 0:01:55]}  Qe7 {[%clk 0:01:32]} 18. Qf2 {[%clk 0:01:55]}  Rc8 {[%clk 0:01:24]} 19. Rf1 {[%clk 0:01:53]}  O-O {[%clk 0:01:23]} 20. Qg3 {[%clk 0:01:44]}  Be8 {[%clk 0:00:52]} 21. Rg4 {[%clk 0:01:42]}  f5 {[%clk 0:00:52]} 22. exf6 {[%clk 0:01:32]}  Rxf6 {[%clk 0:00:52]} 23. Rxg7+ {[%clk 0:01:19]}  Qxg7 {[%clk 0:00:51]} 24. Rxf6 {[%clk 0:01:19]}  Qxg3 {[%clk 0:00:51]} 25. hxg3 {[%clk 0:01:19]} 1-0


[Site "https://www.chess.com"]

[Event "Titled Tuesday Blitz November 08 Late 2022"]
[White "Forgacs, Attila Jr."]
[Black "Phillips, Rene"]
[WhiteFideId "773654"]
[BlackFideId "2056275"]
[WhiteElo "2168"]
[BlackElo "2001"]
[Result "1-0"]
[Round "02"]
[TimeControl "180+1"]
[Date "2022.11.09"]
[WhiteClock "0:00:25"]
[BlackClock "0:00:02"]

1. e4 {[%clk 0:03:00]}  Nc6 {[%clk 0:02:52]} 2. Nf3 {[%clk 0:02:59]}  d5 {[%clk 0:02:52]} 3. exd5 {[%clk 0:02:59]}  Qxd5 {[%clk 0:02:53]} 4. Nc3 {[%clk 0:03:00]}  Qa5 {[%clk 0:02:53]} 5. d4 {[%clk 0:03:00]}  Bg4 {[%clk 0:02:53]} 6. Bd2 {[%clk 0:02:54]}  O-O-O {[%clk 0:02:53]} 7. h3 {[%clk 0:02:30]}  Qh5 {[%clk 0:02:49]} 8. Be2 {[%clk 0:02:20]}  Bxf3 {[%clk 0:02:27]} 9. Bxf3 {[%clk 0:02:19]}  Qh4 {[%clk 0:02:23]} 10. Bg4+ {[%clk 0:02:11]}  e6 {[%clk 0:02:21]} 11. d5 {[%clk 0:02:07]}  Ne5 {[%clk 0:02:12]} 12. dxe6 {[%clk 0:01:59]}  Nxg4 {[%clk 0:02:07]} 13. Qxg4 {[%clk 0:01:59]}  Qe7 {[%clk 0:01:59]} 14. O-O-O {[%clk 0:01:54]}  Qxe6 {[%clk 0:01:55]} 15. Qxe6+ {[%clk 0:01:53]}  fxe6 {[%clk 0:01:56]} 16. Rhe1 {[%clk 0:01:53]}  Re8 {[%clk 0:01:50]} 17. Ne4 {[%clk 0:01:43]}  Nf6 {[%clk 0:01:49]} 18. Ng5 {[%clk 0:01:42]}  Bc5 {[%clk 0:01:46]} 19. Be3 {[%clk 0:01:29]}  Bxe3+ {[%clk 0:01:40]} 20. Rxe3 {[%clk 0:01:30]}  Nd5 {[%clk 0:01:07]} 21. Rxe6 {[%clk 0:01:28]}  Nf4 {[%clk 0:01:00]} 22. Rxe8+ {[%clk 0:01:19]}  Rxe8 {[%clk 0:01:00]} 23. g3 {[%clk 0:01:20]}  h6 {[%clk 0:00:53]} 24. gxf4 {[%clk 0:01:12]}  hxg5 {[%clk 0:00:53]} 25. fxg5 {[%clk 0:01:13]}  Re2 {[%clk 0:00:52]} 26. Rf1 {[%clk 0:01:08]}  Kd7 {[%clk 0:00:52]} 27. Kd1 {[%clk 0:01:07]}  Re4 {[%clk 0:00:47]} 28. Rg1 {[%clk 0:01:05]}  Rb4 {[%clk 0:00:43]} 29. b3 {[%clk 0:01:04]}  Rf4 {[%clk 0:00:41]} 30. Ke2 {[%clk 0:01:02]}  Ke6 {[%clk 0:00:40]} 31. Ke3 {[%clk 0:00:59]}  Kf5 {[%clk 0:00:38]} 32. Rg4 {[%clk 0:00:39]}  Rxg4 {[%clk 0:00:34]} 33. hxg4+ {[%clk 0:00:40]}  Kxg4 {[%clk 0:00:34]} 34. f4 {[%clk 0:00:39]}  Kf5 {[%clk 0:00:34]} 35. Kf3 {[%clk 0:00:39]}  g6 {[%clk 0:00:31]} 36. Ke3 {[%clk 0:00:39]}  c5 {[%clk 0:00:31]} 37. c4 {[%clk 0:00:38]}  b6 {[%clk 0:00:29]} 38. Kf3 {[%clk 0:00:36]}  a6 {[%clk 0:00:29]} 39. Ke3 {[%clk 0:00:35]}  b5 {[%clk 0:00:24]} 40. Kf3 {[%clk 0:00:27]}  b4 {[%clk 0:00:22]} 41. Ke3 {[%clk 0:00:25]}  Kg4 {[%clk 0:00:13]} 42. Ke4 {[%clk 0:00:24]}  Kg3 {[%clk 0:00:13]} 43. f5 {[%clk 0:00:23]}  gxf5+ {[%clk 0:00:12]} 44. Kxf5 {[%clk 0:00:24]}  a5 {[%clk 0:00:02]} 45. g6 {[%clk 0:00:25]} 1-0


[Site "https://www.chess.com"]

[Event "Titled Tuesday Blitz November 08 Late 2022"]
[White "Freile Martin, Javier"]
[Black "Thiel, Thomas"]
[WhiteFideId "3600165"]
[BlackFideId "4615964"]
[WhiteElo "2470"]
[BlackElo "2200"]
[Result "1-0"]
[Round "02"]
[TimeControl "180+1"]
[Date "2022.11.09"]
[WhiteClock "0:01:27"]
[BlackClock "0:00:41"]

1. c4 {[%clk 0:02:58]}  Nf6 {[%clk 0:02:56]} 2. Nc3 {[%clk 0:02:57]}  g6 {[%clk 0:02:54]} 3. d4 {[%clk 0:02:54]}  d5 {[%clk 0:02:52]} 4. h4 {[%clk 0:02:53]}  h5 {[%clk 0:02:49]} 5. Bg5 {[%clk 0:02:50]}  Bg7 {[%clk 0:02:48]} 6. Bxf6 {[%clk 0:02:45]}  Bxf6 {[%clk 0:02:48]} 7. cxd5 {[%clk 0:02:44]}  c5 {[%clk 0:02:47]} 8. dxc5 {[%clk 0:02:38]}  Bxc3+ {[%clk 0:02:18]} 9. bxc3 {[%clk 0:02:37]}  Qa5 {[%clk 0:02:17]} 10. Qd4 {[%clk 0:02:35]}  O-O {[%clk 0:02:16]} 11. e4 {[%clk 0:02:32]}  Nd7 {[%clk 0:02:14]} 12. Nf3 {[%clk 0:02:22]}  Nxc5 {[%clk 0:02:12]} 13. Bc4 {[%clk 0:02:21]}  Nxe4 {[%clk 0:01:56]} 14. O-O {[%clk 0:02:13]}  Nd6 {[%clk 0:01:48]} 15. Bb3 {[%clk 0:02:12]}  Bf5 {[%clk 0:01:47]} 16. c4 {[%clk 0:02:06]}  b6 {[%clk 0:01:46]} 17. Ne5 {[%clk 0:02:03]}  Qc5 {[%clk 0:01:39]} 18. Qf4 {[%clk 0:01:59]}  Rac8 {[%clk 0:01:09]} 19. Rac1 {[%clk 0:01:57]}  Rfd8 {[%clk 0:01:02]} 20. Rfe1 {[%clk 0:01:55]}  Rc7 {[%clk 0:00:58]} 21. Re3 {[%clk 0:01:49]}  Rdc8 {[%clk 0:00:56]} 22. Rce1 {[%clk 0:01:45]}  b5 {[%clk 0:00:52]} 23. cxb5 {[%clk 0:01:43]}  Nxb5 {[%clk 0:00:50]} 24. Nc6 {[%clk 0:01:31]}  Nd4 {[%clk 0:00:41]} 25. Nxd4 {[%clk 0:01:27]} 1-0


[Site "https://www.chess.com"]

[Event "Titled Tuesday Blitz November 08 Late 2022"]
[White "Gasparyan, David"]
[Black "Mihajlov, Sebastian"]
[WhiteFideId "13311980"]
[BlackFideId "1512110"]
[WhiteElo "2328"]
[BlackElo "2464"]
[Result "0-1"]
[Round "02"]
[TimeControl "180+1"]
[Date "2022.11.09"]
[WhiteClock "0:00:02"]
[BlackClock "0:01:48"]

1. Nf3 {[%clk 0:03:00]}  b5 {[%clk 0:02:59]} 2. c3 {[%clk 0:02:54]}  Bb7 {[%clk 0:02:59]} 3. d4 {[%clk 0:02:53]}  e6 {[%clk 0:02:56]} 4. Nbd2 {[%clk 0:02:51]}  Nf6 {[%clk 0:02:56]} 5. e3 {[%clk 0:02:50]}  a6 {[%clk 0:02:56]} 6. Bd3 {[%clk 0:02:50]}  c5 {[%clk 0:02:56]} 7. O-O {[%clk 0:02:49]}  Be7 {[%clk 0:02:56]} 8. e4 {[%clk 0:02:45]}  d6 {[%clk 0:02:56]} 9. Re1 {[%clk 0:02:45]}  O-O {[%clk 0:02:54]} 10. Nf1 {[%clk 0:02:45]}  Nc6 {[%clk 0:02:48]} 11. a3 {[%clk 0:02:31]}  Re8 {[%clk 0:02:45]} 12. Ng3 {[%clk 0:02:15]}  g6 {[%clk 0:02:44]} 13. Bc2 {[%clk 0:01:56]}  e5 {[%clk 0:02:42]} 14. d5 {[%clk 0:01:53]}  Nb8 {[%clk 0:02:42]} 15. a4 {[%clk 0:01:48]}  Nbd7 {[%clk 0:02:40]} 16. a5 {[%clk 0:01:46]}  c4 {[%clk 0:02:40]} 17. h3 {[%clk 0:01:41]}  Nc5 {[%clk 0:02:37]} 18. Be3 {[%clk 0:01:41]}  Rc8 {[%clk 0:02:29]} 19. Nd2 {[%clk 0:01:06]}  Bf8 {[%clk 0:02:16]} 20. Rf1 {[%clk 0:00:59]}  Nfd7 {[%clk 0:02:08]} 21. Qe2 {[%clk 0:00:48]}  Bg7 {[%clk 0:02:08]} 22. Kh1 {[%clk 0:00:44]}  h5 {[%clk 0:01:53]} 23. f4 {[%clk 0:00:36]}  exf4 {[%clk 0:01:53]} 24. Rxf4 {[%clk 0:00:35]}  Ne5 {[%clk 0:01:53]} 25. h4 {[%clk 0:00:23]}  Ned3 {[%clk 0:01:50]} 26. Bxc5 {[%clk 0:00:13]}  Nxf4 {[%clk 0:01:49]} 27. Qf3 {[%clk 0:00:08]}  Qxh4+ {[%clk 0:01:48]} 28. Kg1 {[%clk 0:00:09]}  Rxc5 {[%clk 0:01:47]} 29. Rf1 {[%clk 0:00:08]}  Qxg3 {[%clk 0:01:47]} 30. Qxg3 {[%clk 0:00:06]}  Ne2+ {[%clk 0:01:48]} 31. Kh2 {[%clk 0:00:06]}  Nxg3 {[%clk 0:01:49]} 32. Kxg3 {[%clk 0:00:07]}  Be5+ {[%clk 0:01:50]} 33. Kh3 {[%clk 0:00:07]}  Bc8+ {[%clk 0:01:49]} 34. Kh4 {[%clk 0:00:06]}  Kg7 {[%clk 0:01:49]} 35. g3 {[%clk 0:00:06]}  Kh6 {[%clk 0:01:48]} 36. Rxf7 {[%clk 0:00:02]}  g5# {[%clk 0:01:48]} 0-1


[Site "https://www.chess.com"]

[Event "Titled Tuesday Blitz November 08 Late 2022"]
[White "Goltsev, Dmitry"]
[Black "Mikhalsky, Vladimir"]
[WhiteFideId "24176710"]
[BlackFideId "14144352"]
[WhiteElo "2289"]
[BlackElo "2271"]
[Result "1-0"]
[Round "02"]
[TimeControl "180+1"]
[Date "2022.11.09"]
[WhiteClock "0:02:20"]
[BlackClock "0:00:12"]

1. e4 {[%clk 0:03:00]}  c5 {[%clk 0:02:57]} 2. Nf3 {[%clk 0:03:01]}  Nc6 {[%clk 0:02:56]} 3. d4 {[%clk 0:03:01]}  cxd4 {[%clk 0:02:56]} 4. Nxd4 {[%clk 0:03:02]}  Nf6 {[%clk 0:02:57]} 5. Nc3 {[%clk 0:03:03]}  e5 {[%clk 0:02:57]} 6. Nf5 {[%clk 0:03:02]}  d5 {[%clk 0:02:56]} 7. exd5 {[%clk 0:03:03]}  Bxf5 {[%clk 0:02:53]} 8. dxc6 {[%clk 0:03:04]}  Qxd1+ {[%clk 0:02:53]} 9. Nxd1 {[%clk 0:03:05]}  bxc6 {[%clk 0:02:52]} 10. Ne3 {[%clk 0:03:04]}  Bg6 {[%clk 0:02:45]} 11. Bc4 {[%clk 0:03:05]}  Bc5 {[%clk 0:02:32]} 12. c3 {[%clk 0:03:05]}  Rd8 {[%clk 0:02:25]} 13. O-O {[%clk 0:03:03]}  Nd5 {[%clk 0:02:25]} 14. Nxd5 {[%clk 0:02:58]}  cxd5 {[%clk 0:02:25]} 15. Bb5+ {[%clk 0:02:58]}  Ke7 {[%clk 0:02:24]} 16. Re1 {[%clk 0:02:58]}  f6 {[%clk 0:02:20]} 17. b4 {[%clk 0:02:58]}  Bb6 {[%clk 0:02:19]} 18. a4 {[%clk 0:02:57]}  Rc8 {[%clk 0:01:44]} 19. a5 {[%clk 0:02:55]}  Bc7 {[%clk 0:01:44]} 20. Be3 {[%clk 0:02:54]}  Bb8 {[%clk 0:01:37]} 21. Bc5+ {[%clk 0:02:53]}  Rxc5 {[%clk 0:01:29]} 22. bxc5 {[%clk 0:02:52]}  Rc8 {[%clk 0:01:28]} 23. c6 {[%clk 0:02:51]}  a6 {[%clk 0:01:28]} 24. Bxa6 {[%clk 0:02:51]}  Rxc6 {[%clk 0:01:28]} 25. Bb7 {[%clk 0:02:52]}  Rxc3 {[%clk 0:01:27]} 26. Bxd5 {[%clk 0:02:52]}  Ba7 {[%clk 0:01:25]} 27. Bf3 {[%clk 0:02:48]}  Rc2 {[%clk 0:01:21]} 28. Re2 {[%clk 0:02:47]}  Rc3 {[%clk 0:01:16]} 29. a6 {[%clk 0:02:46]}  Kd6 {[%clk 0:01:13]} 30. h4 {[%clk 0:02:44]}  Bd3 {[%clk 0:01:05]} 31. Rb2 {[%clk 0:02:42]}  e4 {[%clk 0:01:04]} 32. Be2 {[%clk 0:02:40]}  Ke5 {[%clk 0:00:43]} 33. Rb7 {[%clk 0:02:32]}  Bxe2 {[%clk 0:00:15]} 34. Rxa7 {[%clk 0:02:32]}  Rc6 {[%clk 0:00:14]} 35. Rxg7 {[%clk 0:02:31]}  Bxa6 {[%clk 0:00:12]} 36. Rxh7 {[%clk 0:02:31]}  f5 {[%clk 0:00:12]} 37. Re7+ {[%clk 0:02:30]}  Kf4 {[%clk 0:00:12]} 38. h5 {[%clk 0:02:29]}  Bd3 {[%clk 0:00:11]} 39. Rh7 {[%clk 0:02:27]}  Kg5 {[%clk 0:00:10]} 40. Rh8 {[%clk 0:02:27]}  f4 {[%clk 0:00:10]} 41. h6 {[%clk 0:02:27]}  e3 {[%clk 0:00:10]} 42. fxe3 {[%clk 0:02:27]}  fxe3 {[%clk 0:00:10]} 43. Re1 {[%clk 0:02:27]}  e2 {[%clk 0:00:10]} 44. h7 {[%clk 0:02:27]}  Kh6 {[%clk 0:00:10]} 45. Rd8 {[%clk 0:02:25]}  Bxh7 {[%clk 0:00:09]} 46. Rxe2 {[%clk 0:02:25]}  Rc1+ {[%clk 0:00:09]} 47. Kf2 {[%clk 0:02:25]}  Rc5 {[%clk 0:00:09]} 48. Rd6+ {[%clk 0:02:23]}  Bg6 {[%clk 0:00:09]} 49. Ree6 {[%clk 0:02:22]}  Rf5+ {[%clk 0:00:09]} 50. Ke3 {[%clk 0:02:17]}  Rg5 {[%clk 0:00:09]} 51. Rxg6+ {[%clk 0:02:15]}  Rxg6 {[%clk 0:00:09]} 52. Rxg6+ {[%clk 0:02:16]}  Kxg6 {[%clk 0:00:10]} 53. Kf4 {[%clk 0:02:17]}  Kf6 {[%clk 0:00:10]} 54. Kg4 {[%clk 0:02:16]}  Kg6 {[%clk 0:00:10]} 55. g3 {[%clk 0:02:16]}  Kf6 {[%clk 0:00:10]} 56. Kh5 {[%clk 0:02:17]}  Kf5 {[%clk 0:00:10]} 57. g4+ {[%clk 0:02:16]}  Kf6 {[%clk 0:00:11]} 58. Kh6 {[%clk 0:02:16]}  Kf7 {[%clk 0:00:11]} 59. g5 {[%clk 0:02:17]}  Kg8 {[%clk 0:00:11]} 60. Kg6 {[%clk 0:02:17]}  Kh8 {[%clk 0:00:11]} 61. Kf7 {[%clk 0:02:18]}  Kh7 {[%clk 0:00:11]} 62. g6+ {[%clk 0:02:18]}  Kh8 {[%clk 0:00:12]} 63. g7+ {[%clk 0:02:19]}  Kh7 {[%clk 0:00:12]} 64. g8=Q+ {[%clk 0:02:20]} 1-0


[Site "https://www.chess.com"]

[Event "Titled Tuesday Blitz November 08 Late 2022"]
[White "Golubev, Mikhail"]
[Black "Yanchenko, Roman"]
[WhiteFideId "14100983"]
[BlackFideId "4137329"]
[WhiteElo "2544"]
[BlackElo "2792"]
[Result "0-1"]
[Round "02"]
[TimeControl "180+1"]
[Date "2022.11.09"]
[WhiteClock "0:00:03"]
[BlackClock "0:01:22"]

1. e4 {[%clk 0:03:00]}  e6 {[%clk 0:03:00]} 2. d4 {[%clk 0:03:00]}  d5 {[%clk 0:03:00]} 3. Nc3 {[%clk 0:03:00]}  Bb4 {[%clk 0:03:00]} 4. e5 {[%clk 0:02:59]}  Ne7 {[%clk 0:03:01]} 5. a3 {[%clk 0:02:59]}  Bxc3+ {[%clk 0:03:01]} 6. bxc3 {[%clk 0:03:00]}  b6 {[%clk 0:03:02]} 7. Qg4 {[%clk 0:02:58]}  Kf8 {[%clk 0:03:02]} 8. Nf3 {[%clk 0:02:49]}  Ba6 {[%clk 0:03:02]} 9. Bxa6 {[%clk 0:02:41]}  Nxa6 {[%clk 0:03:03]} 10. a4 {[%clk 0:02:41]}  c5 {[%clk 0:03:03]} 11. O-O {[%clk 0:02:38]}  Rc8 {[%clk 0:03:01]} 12. a5 {[%clk 0:02:33]}  b5 {[%clk 0:03:01]} 13. dxc5 {[%clk 0:02:25]}  Nxc5 {[%clk 0:03:01]} 14. Ba3 {[%clk 0:02:22]}  a6 {[%clk 0:03:00]} 15. c4 {[%clk 0:02:11]}  bxc4 {[%clk 0:02:21]} 16. Rfb1 {[%clk 0:02:05]}  Qxa5 {[%clk 0:02:20]} 17. Nd4 {[%clk 0:01:50]}  h5 {[%clk 0:02:14]} 18. Qf3 {[%clk 0:01:18]}  Kg8 {[%clk 0:02:13]} 19. c3 {[%clk 0:01:02]}  Ng6 {[%clk 0:02:02]} 20. Qe3 {[%clk 0:00:49]}  Nd3 {[%clk 0:01:55]} 21. Bb4 {[%clk 0:00:39]}  Qc7 {[%clk 0:01:55]} 22. Bd6 {[%clk 0:00:38]}  Qa7 {[%clk 0:01:46]} 23. Qg5 {[%clk 0:00:31]}  h4 {[%clk 0:01:42]} 24. Ra5 {[%clk 0:00:20]}  h3 {[%clk 0:01:39]} 25. g3 {[%clk 0:00:12]}  Ra8 {[%clk 0:01:36]} 26. Rba1 {[%clk 0:00:11]}  Qb6 {[%clk 0:01:30]} 27. R5a2 {[%clk 0:00:05]}  a5 {[%clk 0:01:29]} 28. f4 {[%clk 0:00:03]}  a4 {[%clk 0:01:22]} 29. f5 {[%clk 0:00:03]}  Ngxe5 {[%clk 0:01:22]} 0-1


[Site "https://www.chess.com"]